[Event "Titled Tuesday Blitz February 28 Late 2023"]
[White "Grot, Blazej"]
[Black "Clawitter, Craig"]
[WhiteFideId "21835845"]
[BlackFideId "2023105"]
[WhiteElo "1823"]
[BlackElo "2255"]
[Result "0-1"]
[Round "05"]
[TimeControl "180+2"]
[Date "2023.02.28"]
[WhiteClock "0:00:03"]
[BlackClock "0:00:19"]

1. e4 {[%clk 0:03:00]}  e6 {[%clk 0:02:59]} 2. d3 {[%clk 0:02:59]}  d5 {[%clk 0:02:59]} 3. Nd2 {[%clk 0:02:59]}  Nf6 {[%clk 0:02:59]} 4. Ngf3 {[%clk 0:03:00]}  Bc5 {[%clk 0:02:59]} 5. g3 {[%clk 0:02:49]}  dxe4 {[%clk 0:02:58]} 6. d4 {[%clk 0:02:13]}  Bb6 {[%clk 0:02:40]} 7. Ng5 {[%clk 0:02:02]}  Qxd4 {[%clk 0:02:36]} 8. Qe2 {[%clk 0:01:57]}  Bd7 {[%clk 0:02:11]} 9. c3 {[%clk 0:01:51]}  Qe5 {[%clk 0:01:35]} 10. Nc4 {[%clk 0:01:42]}  Qf5 {[%clk 0:01:23]} 11. Bh3 {[%clk 0:01:17]}  Qg6 {[%clk 0:01:23]} 12. Ne5 {[%clk 0:01:11]}  Qh5 {[%clk 0:01:11]} 13. g4 {[%clk 0:01:03]}  Qh4 {[%clk 0:01:06]} 14. Nexf7 {[%clk 0:00:36]}  O-O {[%clk 0:00:57]} 15. Bg2 {[%clk 0:00:27]}  h6 {[%clk 0:00:37]} 16. Bf4 {[%clk 0:00:07]}  hxg5 {[%clk 0:00:30]} 17. Bxg5 {[%clk 0:00:07]}  Qxf2+ {[%clk 0:00:27]} 18. Qxf2 {[%clk 0:00:07]}  Bxf2+ {[%clk 0:00:27]} 19. Kxf2 {[%clk 0:00:07]}  Rxf7 {[%clk 0:00:28]} 20. Kg3 {[%clk 0:00:05]}  Bc6 {[%clk 0:00:23]} 21. Rad1 {[%clk 0:00:04]}  Nbd7 {[%clk 0:00:22]} 22. h4 {[%clk 0:00:03]}  Raf8 {[%clk 0:00:21]} 23. Bf4 {[%clk 0:00:03]}  Nd5 {[%clk 0:00:19]} 0-1


[Site "https://www.chess.com"]

[Event "Titled Tuesday Blitz February 28 Late 2023"]
[White "Einarsson, Halldor Gretar"]
[Black "aidenzhouu"]
[WhiteFideId "2300150"]
[WhiteElo "2126"]
[BlackElo "2416"]
[Result "1-0"]
[Round "05"]
[TimeControl "180+2"]
[Date "2023.02.28"]
[WhiteClock "0:00:50"]
[BlackClock "0:00:18"]

1. d4 {[%clk 0:03:00]}  Nf6 {[%clk 0:02:59]} 2. c4 {[%clk 0:02:59]}  Nc6 {[%clk 0:02:57]} 3. Nc3 {[%clk 0:02:55]}  e5 {[%clk 0:02:57]} 4. Nf3 {[%clk 0:02:52]}  exd4 {[%clk 0:02:56]} 5. Nxd4 {[%clk 0:02:52]}  Bc5 {[%clk 0:02:57]} 6. Be3 {[%clk 0:02:35]}  Nxd4 {[%clk 0:02:29]} 7. Bxd4 {[%clk 0:02:35]}  Qe7 {[%clk 0:02:30]} 8. e3 {[%clk 0:02:27]}  O-O {[%clk 0:02:29]} 9. Be2 {[%clk 0:02:27]}  Bxd4 {[%clk 0:02:22]} 10. Qxd4 {[%clk 0:02:26]}  d6 {[%clk 0:02:23]} 11. O-O {[%clk 0:02:24]}  Bf5 {[%clk 0:02:23]} 12. Bf3 {[%clk 0:02:19]}  c6 {[%clk 0:02:06]} 13. Rfd1 {[%clk 0:02:18]}  Rfd8 {[%clk 0:02:06]} 14. h3 {[%clk 0:02:15]}  Qe5 {[%clk 0:02:03]} 15. Rd2 {[%clk 0:02:10]}  Qxd4 {[%clk 0:01:57]} 16. Rxd4 {[%clk 0:02:10]}  Kf8 {[%clk 0:01:57]} 17. Rad1 {[%clk 0:02:08]}  Ke7 {[%clk 0:01:57]} 18. g4 {[%clk 0:02:03]}  Be6 {[%clk 0:01:54]} 19. b3 {[%clk 0:01:52]}  h6 {[%clk 0:01:08]} 20. Bg2 {[%clk 0:01:51]}  Rd7 {[%clk 0:01:07]} 21. f4 {[%clk 0:01:50]}  Rad8 {[%clk 0:01:06]} 22. f5 {[%clk 0:01:49]}  a6 {[%clk 0:00:56]} 23. Ne4 {[%clk 0:01:35]}  Nxe4 {[%clk 0:00:54]} 24. Bxe4 {[%clk 0:01:33]}  d5 {[%clk 0:00:48]} 25. fxe6 {[%clk 0:01:32]}  fxe6 {[%clk 0:00:48]} 26. cxd5 {[%clk 0:01:31]}  exd5 {[%clk 0:00:44]} 27. Bf5 {[%clk 0:01:28]}  Rd6 {[%clk 0:00:44]} 28. e4 {[%clk 0:01:27]}  dxe4 {[%clk 0:00:44]} 29. Rxd6 {[%clk 0:01:26]}  Rxd6 {[%clk 0:00:44]} 30. Rxd6 {[%clk 0:01:25]}  Kxd6 {[%clk 0:00:45]} 31. Bxe4 {[%clk 0:01:25]}  Kc5 {[%clk 0:00:45]} 32. Kf2 {[%clk 0:01:21]}  Kd4 {[%clk 0:00:42]} 33. Bf5 {[%clk 0:01:18]}  a5 {[%clk 0:00:39]} 34. a4 {[%clk 0:01:05]}  b5 {[%clk 0:00:22]} 35. Bd7 {[%clk 0:01:02]}  bxa4 {[%clk 0:00:20]} 36. bxa4 {[%clk 0:01:01]}  c5 {[%clk 0:00:21]} 37. Ke2 {[%clk 0:01:00]}  g5 {[%clk 0:00:19]} 38. Kd2 {[%clk 0:00:58]}  Ke4 {[%clk 0:00:18]} 39. Kc3 {[%clk 0:00:56]}  Kd5 {[%clk 0:00:18]} 40. Bb5 {[%clk 0:00:50]} 1-0


[Site "https://www.chess.com"]

[Event "Titled Tuesday Blitz February 28 Late 2023"]
[White "Forgacs, Attila Jr."]
[Black "De Souza, Cristiano Gomes"]
[WhiteFideId "773654"]
[BlackFideId "2151758"]
[WhiteElo "2168"]
[BlackElo "2068"]
[Result "0-1"]
[Round "05"]
[TimeControl "180+2"]
[Date "2023.02.28"]
[WhiteClock "0:00:18"]
[BlackClock "0:00:04"]

1. e4 {[%clk 0:03:00]}  c5 {[%clk 0:02:59]} 2. Nf3 {[%clk 0:03:01]}  d6 {[%clk 0:02:58]} 3. d4 {[%clk 0:03:01]}  cxd4 {[%clk 0:02:58]} 4. Nxd4 {[%clk 0:03:02]}  Nf6 {[%clk 0:02:57]} 5. Nc3 {[%clk 0:03:03]}  a6 {[%clk 0:02:57]} 6. f3 {[%clk 0:03:03]}  e5 {[%clk 0:02:55]} 7. Nb3 {[%clk 0:03:03]}  Be6 {[%clk 0:02:55]} 8. Be3 {[%clk 0:03:04]}  Nbd7 {[%clk 0:02:53]} 9. Qd2 {[%clk 0:03:04]}  Be7 {[%clk 0:02:52]} 10. g4 {[%clk 0:03:04]}  b5 {[%clk 0:02:50]} 11. O-O-O {[%clk 0:03:04]}  O-O {[%clk 0:02:43]} 12. Rg1 {[%clk 0:03:03]}  b4 {[%clk 0:02:41]} 13. Nd5 {[%clk 0:03:03]}  Bxd5 {[%clk 0:02:39]} 14. exd5 {[%clk 0:03:03]}  a5 {[%clk 0:02:38]} 15. Kb1 {[%clk 0:03:03]}  a4 {[%clk 0:02:36]} 16. Nc1 {[%clk 0:03:02]}  Qa5 {[%clk 0:02:33]} 17. g5 {[%clk 0:03:02]}  Nh5 {[%clk 0:02:24]} 18. Bh3 {[%clk 0:03:02]}  Nc5 {[%clk 0:02:16]} 19. Bg4 {[%clk 0:02:59]}  Nf4 {[%clk 0:02:13]} 20. Bxf4 {[%clk 0:02:59]}  exf4 {[%clk 0:02:13]} 21. h4 {[%clk 0:02:54]}  b3 {[%clk 0:02:08]} 22. cxb3 {[%clk 0:02:54]}  axb3 {[%clk 0:02:07]} 23. Qxa5 {[%clk 0:02:52]}  Rxa5 {[%clk 0:02:05]} 24. a3 {[%clk 0:02:53]}  Ra4 {[%clk 0:01:59]} 25. Rge1 {[%clk 0:02:46]}  Bd8 {[%clk 0:01:57]} 26. Bf5 {[%clk 0:02:42]}  g6 {[%clk 0:01:55]} 27. Be4 {[%clk 0:02:43]}  f6 {[%clk 0:01:53]} 28. gxf6 {[%clk 0:02:40]}  Bxf6 {[%clk 0:01:52]} 29. h5 {[%clk 0:02:41]}  Kg7 {[%clk 0:01:49]} 30. hxg6 {[%clk 0:02:40]}  hxg6 {[%clk 0:01:48]} 31. Nd3 {[%clk 0:02:39]}  Nxd3 {[%clk 0:01:43]} 32. Rxd3 {[%clk 0:02:38]}  Rb8 {[%clk 0:01:34]} 33. Rg1 {[%clk 0:02:36]}  g5 {[%clk 0:01:33]} 34. Rh1 {[%clk 0:02:36]}  g4 {[%clk 0:01:02]} 35. Rh7+ {[%clk 0:02:30]}  Kg8 {[%clk 0:01:02]} 36. Rh6 {[%clk 0:02:23]}  Kf7 {[%clk 0:00:56]} 37. Rh7+ {[%clk 0:01:31]}  Bg7 {[%clk 0:00:53]} 38. Bf5 {[%clk 0:01:14]}  g3 {[%clk 0:00:50]} 39. Rd1 {[%clk 0:01:05]}  Rh8 {[%clk 0:00:27]} 40. Rxh8 {[%clk 0:00:46]}  Bxh8 {[%clk 0:00:26]} 41. Bh3 {[%clk 0:00:31]}  Bd4 {[%clk 0:00:20]} 42. Rd3 {[%clk 0:00:31]}  Be3 {[%clk 0:00:16]} 43. Rxb3 {[%clk 0:00:30]}  Kf6 {[%clk 0:00:16]} 44. Kc2 {[%clk 0:00:27]}  Ke5 {[%clk 0:00:16]} 45. Rd3 {[%clk 0:00:27]}  Ra7 {[%clk 0:00:16]} 46. Rd1 {[%clk 0:00:18]}  Rh7 {[%clk 0:00:15]} 47. Rh1 {[%clk 0:00:13]}  Kd4 {[%clk 0:00:13]} 48. b4 {[%clk 0:00:10]}  Bf2 {[%clk 0:00:11]} 49. a4 {[%clk 0:00:08]}  Ke3 {[%clk 0:00:11]} 50. a5 {[%clk 0:00:07]}  Kxf3 {[%clk 0:00:09]} 51. Bg2+ {[%clk 0:00:08]}  Kxg2 {[%clk 0:00:09]} 52. Rxh7 {[%clk 0:00:08]}  f3 {[%clk 0:00:09]} 53. b5 {[%clk 0:00:08]}  Kf1 {[%clk 0:00:09]} 54. b6 {[%clk 0:00:08]}  g2 {[%clk 0:00:09]} 55. Rg7 {[%clk 0:00:09]}  g1=Q {[%clk 0:00:07]} 56. Rxg1+ {[%clk 0:00:08]}  Bxg1 {[%clk 0:00:08]} 57. Kd3 {[%clk 0:00:08]}  Kg2 {[%clk 0:00:07]} 58. Ke4 {[%clk 0:00:05]}  Bc5 {[%clk 0:00:06]} 59. b7 {[%clk 0:00:03]}  Ba7 {[%clk 0:00:05]} 60. Kf5 {[%clk 0:00:03]}  f2 {[%clk 0:00:05]} 61. Ke6 {[%clk 0:00:04]}  Bb8 {[%clk 0:00:05]} 62. a6 {[%clk 0:00:03]}  f1=Q {[%clk 0:00:05]} 63. a7 {[%clk 0:00:04]}  Bxa7 {[%clk 0:00:05]} 64. Kd7 {[%clk 0:00:04]}  Qf4 {[%clk 0:00:04]} 65. Kc6 {[%clk 0:00:05]}  Qc4+ {[%clk 0:00:03]} 66. Kd7 {[%clk 0:00:05]}  Qc5 {[%clk 0:00:04]} 67. b8=Q {[%clk 0:00:06]}  Bxb8 {[%clk 0:00:04]} 68. Ke6 {[%clk 0:00:07]}  Qd4 {[%clk 0:00:03]} 69. Kd7 {[%clk 0:00:08]}  Qe5 {[%clk 0:00:03]} 70. Kc6 {[%clk 0:00:09]}  Qc3+ {[%clk 0:00:03]} 71. Kd7 {[%clk 0:00:10]}  Ba7 {[%clk 0:00:03]} 72. Ke6 {[%clk 0:00:11]}  Bc5 {[%clk 0:00:03]} 73. Kd7 {[%clk 0:00:12]}  Qe5 {[%clk 0:00:03]} 74. Kc6 {[%clk 0:00:13]}  Qe4 {[%clk 0:00:03]} 75. Kd7 {[%clk 0:00:13]}  Qxd5 {[%clk 0:00:03]} 76. Kc7 {[%clk 0:00:13]}  Qf3 {[%clk 0:00:03]} 77. Kd7 {[%clk 0:00:14]}  Be3 {[%clk 0:00:03]} 78. Ke6 {[%clk 0:00:15]}  d5 {[%clk 0:00:04]} 79. Kd6 {[%clk 0:00:16]}  d4 {[%clk 0:00:04]} 80. Kc5 {[%clk 0:00:16]}  d3+ {[%clk 0:00:05]} 81. Kc4 {[%clk 0:00:17]}  d2 {[%clk 0:00:06]} 82. Kd3 {[%clk 0:00:18]}  d1=Q+ {[%clk 0:00:06]} 83. Kc4 {[%clk 0:00:19]}  Qfe2+ {[%clk 0:00:05]} 84. Kb4 {[%clk 0:00:18]}  Qec2 {[%clk 0:00:05]} 85. Ka3 {[%clk 0:00:18]}  Qb3# {[%clk 0:00:04]} 0-1


[Site "https://www.chess.com"]

[Event "Titled Tuesday Blitz February 28 Late 2023"]
[White "Chabris, Christopher"]
[Black "Hoffmann, Asa"]
[WhiteFideId "2005263"]
[BlackFideId "2001470"]
[WhiteElo "2224"]
[BlackElo "2117"]
[Result "1-0"]
[Round "05"]
[TimeControl "180+2"]
[Date "2023.02.28"]
[WhiteClock "0:00:01"]
[BlackClock "0:00:01"]

1. e4 {[%clk 0:03:00]}  d6 {[%clk 0:02:53]} 2. d4 {[%clk 0:03:00]}  Nf6 {[%clk 0:02:53]} 3. Nc3 {[%clk 0:03:00]}  c6 {[%clk 0:02:53]} 4. f4 {[%clk 0:02:59]}  Qa5 {[%clk 0:02:52]} 5. Nf3 {[%clk 0:02:54]}  Nxe4 {[%clk 0:02:51]} 6. Bd3 {[%clk 0:02:38]}  Nxc3 {[%clk 0:02:47]} 7. Qd2 {[%clk 0:02:38]}  g6 {[%clk 0:02:44]} 8. bxc3 {[%clk 0:02:36]}  Bg7 {[%clk 0:02:43]} 9. O-O {[%clk 0:02:36]}  Bg4 {[%clk 0:02:42]} 10. Ng5 {[%clk 0:02:25]}  h6 {[%clk 0:02:32]} 11. Ne4 {[%clk 0:02:08]}  Nd7 {[%clk 0:02:25]} 12. Ng3 {[%clk 0:01:57]}  e6 {[%clk 0:02:17]} 13. a4 {[%clk 0:01:52]}  O-O-O {[%clk 0:02:14]} 14. Ne4 {[%clk 0:01:49]}  Nf6 {[%clk 0:02:10]} 15. Ba3 {[%clk 0:01:37]}  Nxe4 {[%clk 0:02:01]} 16. Bxe4 {[%clk 0:01:37]}  Bf5 {[%clk 0:01:57]} 17. Bf3 {[%clk 0:01:33]}  h5 {[%clk 0:01:40]} 18. Bb4 {[%clk 0:01:27]}  Qc7 {[%clk 0:01:38]} 19. a5 {[%clk 0:01:17]}  a6 {[%clk 0:01:36]} 20. Qe3 {[%clk 0:01:09]}  Bf8 {[%clk 0:01:24]} 21. Ba3 {[%clk 0:00:57]}  d5 {[%clk 0:01:24]} 22. Bxf8 {[%clk 0:00:46]}  Rhxf8 {[%clk 0:01:22]} 23. Rfb1 {[%clk 0:00:33]}  Rd7 {[%clk 0:01:15]} 24. Rb2 {[%clk 0:00:30]}  Qd6 {[%clk 0:01:05]} 25. Rab1 {[%clk 0:00:27]}  Rc7 {[%clk 0:01:01]} 26. Be2 {[%clk 0:00:26]}  Re8 {[%clk 0:00:52]} 27. Qf2 {[%clk 0:00:20]}  Ree7 {[%clk 0:00:49]} 28. Qf1 {[%clk 0:00:17]}  Kd8 {[%clk 0:00:45]} 29. Qf2 {[%clk 0:00:16]}  Red7 {[%clk 0:00:45]} 30. Qh4+ {[%clk 0:00:16]}  Ke8 {[%clk 0:00:42]} 31. Qg5 {[%clk 0:00:16]}  c5 {[%clk 0:00:39]} 32. h3 {[%clk 0:00:14]}  cxd4 {[%clk 0:00:33]} 33. cxd4 {[%clk 0:00:14]}  Bxc2 {[%clk 0:00:31]} 34. Rf1 {[%clk 0:00:11]}  Bf5 {[%clk 0:00:30]} 35. g4 {[%clk 0:00:11]}  hxg4 {[%clk 0:00:29]} 36. hxg4 {[%clk 0:00:11]}  Be4 {[%clk 0:00:29]} 37. Rb3 {[%clk 0:00:10]}  Rc4 {[%clk 0:00:27]} 38. Rh3 {[%clk 0:00:10]}  Qf8 {[%clk 0:00:25]} 39. Qf6 {[%clk 0:00:09]}  Re7 {[%clk 0:00:19]} 40. Rh8 {[%clk 0:00:08]}  Qxh8 {[%clk 0:00:19]} 41. Qxh8+ {[%clk 0:00:09]}  Kd7 {[%clk 0:00:19]} 42. Qb8 {[%clk 0:00:08]}  Rc7 {[%clk 0:00:17]} 43. Rd1 {[%clk 0:00:07]}  f6 {[%clk 0:00:13]} 44. Qf8 {[%clk 0:00:06]}  f5 {[%clk 0:00:11]} 45. g5 {[%clk 0:00:06]}  Kd6 {[%clk 0:00:10]} 46. Qf6 {[%clk 0:00:05]}  Rg7 {[%clk 0:00:09]} 47. Qd8+ {[%clk 0:00:05]}  Rcd7 {[%clk 0:00:09]} 48. Qb6+ {[%clk 0:00:05]}  Ke7 {[%clk 0:00:09]} 49. Qc5+ {[%clk 0:00:05]}  Kf7 {[%clk 0:00:08]} 50. Kf2 {[%clk 0:00:05]}  Rh7 {[%clk 0:00:08]} 51. Ke3 {[%clk 0:00:03]}  Rh3+ {[%clk 0:00:06]} 52. Kd2 {[%clk 0:00:03]}  Kg7 {[%clk 0:00:03]} 53. Qc8 {[%clk 0:00:02]}  Re7 {[%clk 0:00:03]} 54. Rc1 {[%clk 0:00:02]}  Rh2 {[%clk 0:00:01]} 55. Rc7 {[%clk 0:00:01]} 1-0


[Site "https://www.chess.com"]

[Event "Titled Tuesday Blitz February 28 Late 2023"]
[White "Hajiyev, Kanan"]
[Black "Floresvillar Gonzalez, Luis Migu"]
[WhiteFideId "13404148"]
[BlackFideId "5100542"]
[WhiteElo "2103"]
[BlackElo "2040"]
[Result "1-0"]
[Round "05"]
[TimeControl "180+2"]
[Date "2023.02.28"]
[WhiteClock "0:01:34"]
[BlackClock "0:01:07"]

1. d4 {[%clk 0:02:59]}  e6 {[%clk 0:02:05]} 2. c4 {[%clk 0:03:00]}  d5 {[%clk 0:02:04]} 3. Nf3 {[%clk 0:03:01]}  Be7 {[%clk 0:02:03]} 4. Nc3 {[%clk 0:03:02]}  Nf6 {[%clk 0:02:03]} 5. cxd5 {[%clk 0:03:03]}  exd5 {[%clk 0:02:03]} 6. Bf4 {[%clk 0:03:00]}  c6 {[%clk 0:02:03]} 7. Qc2 {[%clk 0:03:00]}  O-O {[%clk 0:02:03]} 8. e3 {[%clk 0:03:00]}  Bg4 {[%clk 0:02:03]} 9. Ne5 {[%clk 0:03:00]}  Bh5 {[%clk 0:02:01]} 10. Bd3 {[%clk 0:02:58]}  Nbd7 {[%clk 0:02:00]} 11. g4 {[%clk 0:02:49]}  Bg6 {[%clk 0:02:00]} 12. Nxg6 {[%clk 0:02:44]}  hxg6 {[%clk 0:02:00]} 13. h4 {[%clk 0:02:32]}  Re8 {[%clk 0:01:59]} 14. h5 {[%clk 0:02:32]}  gxh5 {[%clk 0:01:55]} 15. gxh5 {[%clk 0:02:15]}  c5 {[%clk 0:01:45]} 16. O-O-O {[%clk 0:01:59]}  cxd4 {[%clk 0:01:45]} 17. exd4 {[%clk 0:01:59]}  Rc8 {[%clk 0:01:43]} 18. h6 {[%clk 0:01:59]}  Ne4 {[%clk 0:01:23]} 19. Bxe4 {[%clk 0:01:55]}  dxe4 {[%clk 0:01:22]} 20. hxg7 {[%clk 0:01:48]}  f5 {[%clk 0:01:09]} 21. Qb3+ {[%clk 0:01:34]}  Kxg7 {[%clk 0:01:07]} 22. Rdg1+ {[%clk 0:01:34]} 1-0


[Site "https://www.chess.com"]

[Event "Titled Tuesday Blitz February 28 Late 2023"]
[White "Cueto, Jonny"]
[Black "Pein, Jonathan"]
[WhiteFideId "3300145"]
[BlackFideId "417092"]
[WhiteElo "2212"]
[BlackElo "2151"]
[Result "0-1"]
[Round "05"]
[TimeControl "180+2"]
[Date "2023.02.28"]
[WhiteClock "0:01:07"]
[BlackClock "0:01:52"]

1. d4 {[%clk 0:03:00]}  d6 {[%clk 0:02:53]} 2. Nc3 {[%clk 0:03:00]}  Nf6 {[%clk 0:02:53]} 3. e4 {[%clk 0:03:00]}  e5 {[%clk 0:02:54]} 4. Nf3 {[%clk 0:02:53]}  exd4 {[%clk 0:02:54]} 5. Nxd4 {[%clk 0:02:53]}  g6 {[%clk 0:02:55]} 6. Bf4 {[%clk 0:02:52]}  Bg7 {[%clk 0:02:55]} 7. Qd2 {[%clk 0:02:53]}  O-O {[%clk 0:02:55]} 8. O-O-O {[%clk 0:02:52]}  Nc6 {[%clk 0:02:53]} 9. Nxc6 {[%clk 0:02:49]}  bxc6 {[%clk 0:02:54]} 10. Bh6 {[%clk 0:02:49]}  Re8 {[%clk 0:02:52]} 11. h4 {[%clk 0:02:49]}  Bh8 {[%clk 0:02:47]} 12. f3 {[%clk 0:02:48]}  Be6 {[%clk 0:02:47]} 13. h5 {[%clk 0:02:47]}  Qb8 {[%clk 0:02:40]} 14. hxg6 {[%clk 0:02:45]}  fxg6 {[%clk 0:02:41]} 15. Bg5 {[%clk 0:02:41]}  Qb4 {[%clk 0:02:38]} 16. Bxf6 {[%clk 0:02:08]}  Bxf6 {[%clk 0:02:38]} 17. Qh6 {[%clk 0:02:08]}  Re7 {[%clk 0:01:54]} 18. Qd2 {[%clk 0:01:07]}  Rb8 {[%clk 0:01:53]} 19. b3 {[%clk 0:01:07]}  Bxc3 {[%clk 0:01:52]} 0-1


[Site "https://www.chess.com"]

[Event "Titled Tuesday Blitz February 28 Late 2023"]
[White "Sabar, Ethmane Daouda"]
[Black "Bouget, Alexandre"]
[WhiteFideId "19600097"]
[BlackFideId "681318"]
[WhiteElo "1950"]
[BlackElo "2177"]
[Result "0-1"]
[Round "05"]
[TimeControl "180+2"]
[Date "2023.02.28"]
[WhiteClock "0:00:05"]
[BlackClock "0:01:02"]

1. b3 {[%clk 0:02:59]}  e5 {[%clk 0:02:53]} 2. Bb2 {[%clk 0:03:00]}  d6 {[%clk 0:02:53]} 3. e3 {[%clk 0:02:59]}  g6 {[%clk 0:02:54]} 4. d4 {[%clk 0:02:51]}  Bg7 {[%clk 0:02:55]} 5. dxe5 {[%clk 0:02:51]}  Nd7 {[%clk 0:02:54]} 6. Nf3 {[%clk 0:02:47]}  Nxe5 {[%clk 0:02:38]} 7. Nxe5 {[%clk 0:02:43]}  Bxe5 {[%clk 0:02:39]} 8. Bxe5 {[%clk 0:02:42]}  dxe5 {[%clk 0:02:40]} 9. Qxd8+ {[%clk 0:02:42]}  Kxd8 {[%clk 0:02:41]} 10. Nd2 {[%clk 0:02:40]}  c6 {[%clk 0:02:40]} 11. O-O-O {[%clk 0:02:40]}  Kc7 {[%clk 0:02:38]} 12. Nc4 {[%clk 0:02:25]}  f6 {[%clk 0:02:38]} 13. Nd6 {[%clk 0:02:16]}  Be6 {[%clk 0:02:37]} 14. Bc4 {[%clk 0:01:56]}  Bxc4 {[%clk 0:02:36]} 15. Nxc4 {[%clk 0:01:57]}  Ne7 {[%clk 0:02:36]} 16. Rd2 {[%clk 0:01:39]}  Rad8 {[%clk 0:02:35]} 17. Rhd1 {[%clk 0:01:38]}  Rxd2 {[%clk 0:02:35]} 18. Rxd2 {[%clk 0:01:39]}  Nd5 {[%clk 0:02:32]} 19. Kb2 {[%clk 0:01:22]}  b5 {[%clk 0:02:30]} 20. e4 {[%clk 0:01:04]}  Nf4 {[%clk 0:02:24]} 21. Ne3 {[%clk 0:00:58]}  Ne6 {[%clk 0:02:09]} 22. c3 {[%clk 0:00:52]}  a5 {[%clk 0:02:05]} 23. g3 {[%clk 0:00:49]}  Ra8 {[%clk 0:02:01]} 24. h4 {[%clk 0:00:41]}  a4 {[%clk 0:02:00]} 25. b4 {[%clk 0:00:39]}  Rf8 {[%clk 0:01:53]} 26. Ng4 {[%clk 0:00:33]}  h5 {[%clk 0:01:50]} 27. Ne3 {[%clk 0:00:27]}  f5 {[%clk 0:01:49]} 28. exf5 {[%clk 0:00:27]}  gxf5 {[%clk 0:01:50]} 29. Nc2 {[%clk 0:00:20]}  f4 {[%clk 0:01:38]} 30. Re2 {[%clk 0:00:20]}  Rf5 {[%clk 0:01:34]} 31. Ne1 {[%clk 0:00:18]}  Kd6 {[%clk 0:01:27]} 32. Nd3 {[%clk 0:00:17]}  Kd5 {[%clk 0:01:22]} 33. gxf4 {[%clk 0:00:16]}  e4 {[%clk 0:01:17]} 34. Nc5 {[%clk 0:00:14]}  Nxc5 {[%clk 0:01:14]} 35. bxc5 {[%clk 0:00:13]}  Rxf4 {[%clk 0:01:15]} 36. Kc2 {[%clk 0:00:08]}  Rxh4 {[%clk 0:01:12]} 37. Kd2 {[%clk 0:00:08]}  Rh3 {[%clk 0:01:08]} 38. a3 {[%clk 0:00:06]}  Rd3+ {[%clk 0:01:05]} 39. Kc2 {[%clk 0:00:06]}  h4 {[%clk 0:01:04]} 40. Re1 {[%clk 0:00:05]}  h3 {[%clk 0:01:02]} 0-1


[Site "https://www.chess.com"]

[Event "Titled Tuesday Blitz February 28 Late 2023"]
[White "Carrasco Miranda, Andres"]
[Black "Fernandez Hernandez, Gerardo"]
[WhiteFideId "3405990"]
[BlackFideId "2207400"]
[WhiteElo "2183"]
[BlackElo "2210"]
[Result "1-0"]
[Round "05"]
[TimeControl "180+2"]
[Date "2023.02.28"]
[WhiteClock "0:01:36"]
[BlackClock "0:00:09"]

1. d4 {[%clk 0:03:00]}  Nf6 {[%clk 0:02:59]} 2. c4 {[%clk 0:03:00]}  c5 {[%clk 0:02:58]} 3. d5 {[%clk 0:02:58]}  b5 {[%clk 0:02:58]} 4. cxb5 {[%clk 0:02:59]}  a6 {[%clk 0:02:58]} 5. bxa6 {[%clk 0:03:00]}  g6 {[%clk 0:02:57]} 6. Nc3 {[%clk 0:02:52]}  Bg7 {[%clk 0:02:57]} 7. a7 {[%clk 0:02:43]}  Rxa7 {[%clk 0:02:54]} 8. e4 {[%clk 0:02:43]}  O-O {[%clk 0:02:39]} 9. Nf3 {[%clk 0:02:41]}  Qa5 {[%clk 0:02:33]} 10. Bd2 {[%clk 0:02:38]}  d6 {[%clk 0:02:23]} 11. Nb5 {[%clk 0:02:35]}  Qb6 {[%clk 0:02:06]} 12. Nxa7 {[%clk 0:02:35]}  Qxa7 {[%clk 0:02:01]} 13. Bd3 {[%clk 0:02:33]}  Bg4 {[%clk 0:01:36]} 14. O-O {[%clk 0:02:29]}  Nfd7 {[%clk 0:01:31]} 15. Bc3 {[%clk 0:02:23]}  Ne5 {[%clk 0:01:23]} 16. Be2 {[%clk 0:02:19]}  Bxf3 {[%clk 0:01:13]} 17. Bxf3 {[%clk 0:02:19]}  Na6 {[%clk 0:01:05]} 18. Be2 {[%clk 0:02:16]}  Rb8 {[%clk 0:00:59]} 19. Qa4 {[%clk 0:02:07]}  Rb6 {[%clk 0:00:35]} 20. f4 {[%clk 0:02:00]}  Nd7 {[%clk 0:00:17]} 21. e5 {[%clk 0:01:45]}  Ndb8 {[%clk 0:00:10]} 22. e6 {[%clk 0:01:39]}  fxe6 {[%clk 0:00:10]} 23. Qe8+ {[%clk 0:01:36]}  Bf8 {[%clk 0:00:09]} 24. dxe6 {[%clk 0:01:36]}  Nc7 {[%clk 0:00:09]} 25. Qf7# {[%clk 0:01:36]} 1-0


[Site "https://www.chess.com"]

[Event "Titled Tuesday Blitz February 28 Late 2023"]
[White "Rangel, Daniel"]
[Black "Sailer, Mike"]
[WhiteFideId "2124475"]
[BlackFideId "2012901"]
[WhiteElo "2256"]
[BlackElo "2109"]
[Result "1-0"]
[Round "05"]
[TimeControl "180+2"]
[Date "2023.02.28"]
[WhiteClock "0:00:29"]
[BlackClock "0:00:21"]

1. d4 {[%clk 0:03:00]}  d5 {[%clk 0:02:58]} 2. c4 {[%clk 0:02:52]}  Bf5 {[%clk 0:02:54]} 3. cxd5 {[%clk 0:02:50]}  Bxb1 {[%clk 0:02:52]} 4. Rxb1 {[%clk 0:02:49]}  Qxd5 {[%clk 0:02:52]} 5. Qa4+ {[%clk 0:02:43]}  Nc6 {[%clk 0:02:51]} 6. e3 {[%clk 0:02:42]}  e5 {[%clk 0:02:51]} 7. Bc4 {[%clk 0:02:35]}  Qxg2 {[%clk 0:02:35]} 8. d5 {[%clk 0:02:22]}  Bb4+ {[%clk 0:02:25]} 9. Ke2 {[%clk 0:02:13]}  Ne7 {[%clk 0:01:51]} 10. dxc6 {[%clk 0:02:08]}  Nxc6 {[%clk 0:01:49]} 11. Bd2 {[%clk 0:01:04]}  Bxd2 {[%clk 0:01:39]} 12. Nf3 {[%clk 0:00:59]}  O-O-O {[%clk 0:01:21]} 13. Rhg1 {[%clk 0:00:47]}  Qh3 {[%clk 0:01:12]} 14. Nxd2 {[%clk 0:00:45]}  Rxd2+ {[%clk 0:00:54]} 15. Kxd2 {[%clk 0:00:43]}  Qxh2 {[%clk 0:00:52]} 16. Ke2 {[%clk 0:00:35]}  Qh5+ {[%clk 0:00:48]} 17. Ke1 {[%clk 0:00:32]}  Rd8 {[%clk 0:00:26]} 18. Be2 {[%clk 0:00:30]}  Qf5 {[%clk 0:00:21]} 19. Bg4 {[%clk 0:00:29]} 1-0


[Site "https://www.chess.com"]